Workbook

Sheet Sheet1
O1: Instructions: | S1: Updated | T1: 2015-06-19 | AD1: Inlet | AM1: Discharge | AX1: =$E$7*VLOOKUP($C$7,DECIDER,2,FALSE)/$E$9 -> 9774.850604 | AY1: =$E$8*(VLOOKUP($C$7,DECIDER,2,FALSE)/$E$9)^2 -> 2.099222213 | BA1: =BB1*BC1 -> 1 | BB1: =$E$7*VLOOKUP($C$7,DECIDER,2,FALSE)/$E$9>VLOOKUP($C$7,DECIDER,3,FALSE) -> TRUE | BC1: =$E$8*(VLOOKUP($C$7,DECIDER,2,FALSE)/$E$9)^2<VLOOKUP($C$7,DECIDER,4,FALSE) -> TRUE | BE1: Inlet | BN1: Discharge
A2: Quote/Project#: | B2: 3268 | O2: 1. Enter project information in "green" cells. | AC2: 1 | AD2: 2 | AE2: 3 | AF2: 4 | AG2: 5 | AH2: 6 | AI2: 7 | AJ2: 8 | AK2: 9 | AL2: 10 | AM2: 11 | AN2: 12 | AO2: 13 | AP2: 14 | AQ2: 15 | AR2: 16 | AS2: 17 | AT2: 18 | AU2: 19 | AX2: =$L$7*VLOOKUP($J$7,DECIDER,2,FALSE)/$L$9 ->  | AY2: =$L$8*(VLOOKUP($J$7,DECIDER,2,FALSE)/$L$9)^2 ->  | BA2: =BB2*BC2 ->  | BB2: =$L$7*VLOOKUP($J$7,DECIDER,2,FALSE)/$L$9>VLOOKUP($J$7,DECIDER,3,FALSE) ->  | BC2: =$L$8*(VLOOKUP($J$7,DECIDER,2,FALSE)/$L$9)^2<VLOOKUP($J$7,DECIDER,4,FALSE) ->  | BD2: 1 | BE2: 2 | BF2: 3 | BG2: 4 | BH2: 5 | BI2: 6 | BJ2: 7 | BK2: 8 | BL2: 9 | BM2: 10 | BN2: 11 | BO2: 12 | BP2: 13 | BQ2: 14 | BR2: 15 | BS2: 16 | BT2: 17 | BU2: 18 | BV2: 19
A3: Customer/JOB: | B3: Georgetown Behavioral | O3: 2. Enter Supply and Exhaust (if selected) blower information. | AD3: 63 | AE3: 125 | AF3: 250 | AG3: 500 | AH3: 1000 | AI3: 2000 | AJ3: 4000 | AK3: 8000 | AL3: Tot. | AM3: 63 | AN3: 125 | AO3: 250 | AP3: 500 | AQ3: 1000 | AR3: 2000 | AS3: 4000 | AT3: 8000 | AU3: Tot. | AV3: CFM | AW3: " w.g. | AX3: RPM | AY3: MAX RPM | AZ3: Decider | BA3: RPM | BB3: CFM | BC3: "wg | BE3: 63 | BF3: 125 | BG3: 250 | BH3: 500 | BI3: 1000 | BJ3: 2000 | BK3: 4000 | BL3: 8000 | BM3: Tot. | BN3: 63 | BO3: 125 | BP3: 250 | BQ3: 500 | BR3: 1000 | BS3: 2000 | BT3: 4000 | BU3: 8000 | BV3: Tot. | BW3: CFM | BX3: " w.g. | BY3: RPM
A4: Addison Rep: | B4: - | O4: 3. Add to schedule below. | AC4: 10" BI | AD4: 93 | AE4: 92 | AF4: 91 | AG4: 88 | AH4: 76 | AI4: 70 | AJ4: 71 | AK4: 66 | AL4: 98 | AM4: 83 | AN4: 90 | AO4: 96 | AP4: 97 | AQ4: 86 | AR4: 77 | AS4: 78 | AT4: 71 | AU4: 100 | AV4: 811 | AW4: 6.1 | AX4: 3900 | AY4: 5200 | AZ4: 10" BI | BA4: 5200 | BB4: 1434 | BC4: 9.75 | BD4: 10" BI | BE4: 85 | BF4: 81 | BG4: 80 | BH4: 81 | BI4: 76 | BJ4: 70 | BK4: 71 | BL4: 66 | BM4: 88 | BN4: 75 | BO4: 78 | BP4: 84 | BQ4: 88 | BR4: 86 | BS4: 77 | BT4: 76 | BU4: 68 | BV4: 92 | BW4: 1413 | BX4: 3.9 | BY4: 3900
H5: Check if EXHAUST FAN available | O5: 4. Repeat steps 2-3 for multiple units. | AC5: 11" BI | AD5: 97 | AE5: 94 | AF5: 91 | AG5: 88 | AH5: 78 | AI5: 73 | AJ5: 72 | AK5: 68 | AL5: 99 | AM5: 86 | AN5: 91 | AO5: 95 | AP5: 96 | AQ5: 87 | AR5: 79 | AS5: 78 | AT5: 72 | AU5: 100 | AV5: 638 | AW5: 5 | AX5: 3231 | AY5: 4735 | AZ5: 11" BI | BA5: 2659 | BB5: 928 | BC5: 3.08 | BD5: 11" BI | BE5: 88 | BF5: 83 | BG5: 82 | BH5: 85 | BI5: 78 | BJ5: 73 | BK5: 73 | BL5: 73 | BM5: 91 | BN5: 77 | BO5: 79 | BP5: 85 | BQ5: 91 | BR5: 87 | BS5: 79 | BT5: 77 | BU5: 74 | BV5: 94 | BW5: 1948 | BX5: 4 | BY5: 3700
B6: Unit# | C6: PRRA480 RTU-3 | O6: 5. Reset schedule to clear. | AC6: 12" BI | AD6: 91 | AE6: 87 | AF6: 87 | AG6: 86 | AH6: 74 | AI6: 70 | AJ6: 68 | AK6: 65 | AL6: 94 | AM6: 82 | AN6: 86 | AO6: 93 | AP6: 96 | AQ6: 85 | AR6: 78 | AS6: 76 | AT6: 71 | AU6: 98 | AV6: 1200 | AW6: 5 | AX6: 2873 | AY6: 4315 | AZ6: 12" BI | BA6: 2234 | BB6: 1294 | BC6: 2.72 | BD6: 12" BI | BE6: 87 | BF6: 79 | BG6: 80 | BH6: 82 | BI6: 77 | BJ6: 74 | BK6: 72 | BL6: 69 | BM6: 90 | BN6: 79 | BO6: 78 | BP6: 86 | BQ6: 91 | BR6: 89 | BS6: 83 | BT6: 79 | BU6: 73 | BV6: 95 | BW6: 2485 | BX6: 4.5 | BY6: 3300
B7: Supply Fan | C7: 25" AF | D7: CFM | E7: 12440 | I7: Exhaust Fan | K7: CFM | L7: 0 | O7: 6. Select cells to delete single record. | AC7: 14" BI | AD7: 96 | AE7: 96 | AF7: 94 | AG7: 81 | AH7: 76 | AI7: 76 | AJ7: 74 | AK7: 69 | AL7: 101 | AM7: 86 | AN7: 94 | AO7: 99 | AP7: 90 | AQ7: 86 | AR7: 83 | AS7: 81 | AT7: 74 | AU7: 101 | AV7: 1300 | AW7: 5 | AX7: 2509 | AY7: 3825 | AZ7: 14" BI | BA7: 1940 | BB7: 1677 | BC7: 2.75 | BD7: 14" BI | BE7: 85 | BF7: 80 | BG7: 81 | BH7: 80 | BI7: 76 | BJ7: 75 | BK7: 73 | BL7: 73 | BM7: 89 | BN7: 76 | BO7: 78 | BP7: 86 | BQ7: 88 | BR7: 87 | BS7: 83 | BT7: 79 | BU7: 76 | BV7: 93 | BW7: 2985 | BX7: 4 | BY7: 2700
D8: TSP | E8: 3.4 | K8: TSP | L8: 0 | AC8: 16" BI | AD8: 95 | AE8: 95 | AF8: 94 | AG8: 82 | AH8: 77 | AI8: 77 | AJ8: 72 | AK8: 67 | AL8: 99 | AM8: 83 | AN8: 91 | AO8: 98 | AP8: 89 | AQ8: 86 | AR8: 81 | AS8: 74 | AT8: 70 | AU8: 100 | AV8: 2526 | AW8: 6 | AX8: 2400 | AY8: 3400 | AZ8: 16" BI | BA8: 3134 | BB8: 3600 | BC8: 8.5 | BD8: 16" BI | BE8: 93 | BF8: 85 | BG8: 85 | BH8: 86 | BI8: 81 | BJ8: 79 | BK8: 78 | BL8: 76 | BM8: 95 | BN8: 84 | BO8: 84 | BP8: 90 | BQ8: 95 | BR8: 91 | BS8: 84 | BT8: 81 | BU8: 79 | BV8: 98 | BW8: 4200 | BX8: 6 | BY8: 2944
D9: RPM | E9: 1573 | K9: RPM | L9: 0 | AC9: 18" BI | AD9: 89 | AE9: 87 | AF9: 94 | AG9: 82 | AH9: 75 | AI9: 76 | AJ9: 76 | AK9: 71 | AL9: 97 | AM9: 79 | AN9: 85 | AO9: 100 | AP9: 91 | AQ9: 86 | AR9: 82 | AS9: 80 | AT9: 76 | AU9: 101 | AV9: 3000 | AW9: 6 | AX9: 2220 | AY9: 3025 | AZ9: 18" BI | BA9: 3000 | BB9: 5200 | BC9: 10 | BD9: 18" BI | BE9: 88 | BF9: 83 | BG9: 86 | BH9: 86 | BI9: 81 | BJ9: 82 | BK9: 81 | BL9: 76 | BM9: 93 | BN9: 81 | BO9: 84 | BP9: 93 | BQ9: 97 | BR9: 93 | BS9: 89 | BT9: 86 | BU9: 81 | BV9: 100 | BW9: 6000 | BX9: 6 | BY9: 2718
A10: Sound Data | B10: RETURN | L10: DISCHARGE | AC10: 20" BI | AD10: 90 | AE10: 91 | AF10: 92 | AG10: 82 | AH10: 79 | AI10: 78 | AJ10: 77 | AK10: 72 | AL10: 97 | AM10: 83 | AN10: 91 | AO10: 100 | AP10: 93 | AQ10: 89 | AR10: 84 | AS10: 84 | AT10: 79 | AU10: 102 | AV10: 3000 | AW10: 5 | AX10: 1821 | AY10: 2720 | AZ10: 20" BI | BA10: 2347 | BB10: 5631 | BC10: 7.26 | BD10: 20" BI | BE10: 91 | BF10: 85 | BG10: 91 | BH10: 86 | BI10: 84 | BJ10: 84 | BK10: 85 | BL10: 82 | BM10: 96 | BN10: 87 | BO10: 84 | BP10: 98 | BQ10: 96 | BR10: 92 | BS10: 90 | BT10: 91 | BU10: 86 | BV10: 102 | BW10: 8005 | BX10: 4.5 | BY10: 2400
B11: 63 | C11: 125 | D11: 250 | E11: 500 | F11: 1000 | G11: 2000 | H11: 4000 | I11: 8000 | J11: dBA | L11: 63 | M11: 125 | N11: 250 | O11: 500 | P11: 1000 | Q11: 2000 | R11: 4000 | S11: 8000 | T11: dBA | AC11: 22" BI | AD11: 91 | AE11: 92 | AF11: 95 | AG11: 82 | AH11: 81 | AI11: 80 | AJ11: 80 | AK11: 74 | AL11: 98 | AM11: 82 | AN11: 90 | AO11: 101 | AP11: 91 | AQ11: 89 | AR11: 84 | AS11: 85 | AT11: 79 | AU11: 103 | AV11: 4000 | AW11: 5 | AX11: 1631 | AY11: 2430 | AZ11: 22" BI | BA11: 1734 | BB11: 5889 | BC11: 5.09 | BD11: 22" BI | BE11: 91 | BF11: 89 | BG11: 91 | BH11: 86 | BI11: 85 | BJ11: 84 | BK11: 86 | BL11: 80 | BM11: 97 | BN11: 88 | BO11: 89 | BP11: 99 | BQ11: 97 | BR11: 94 | BS11: 91 | BT11: 93 | BU11: 85 | BV11: 103 | BW11: 10205 | BX11: 4.5 | BY11: 2100
A12: =C6 -> PRRA480 RTU-3 | B12: =AD35+B13 -> 59.71696283 | C12: =AE35+C13 -> 62.71696283 | D12: =AF35+D13 -> 73.71696283 | E12: 72.71696283 | F12: 73.71696283 | G12: 69.71696283 | H12: 69.71696283 | I12: 65.71696283 | J12: =10*LOG((10^(B12/10)+10^(C12/10)+10^(D12/10)+10^(E12/10)+10^(F12/10)+10^(G12/10)+10^(H12/10)+10^(I12/10))) -> 79.59213672 | L12: =AM35+L13 -> 64.71696283 | M12: =AN35+M13 -> 69.71696283 | N12: 82.71696283 | O12: 85.71696283 | P12: 86.71696283 | Q12: 81.71696283 | R12: 78.71696283 | S12: 72.71696283 | T12: =10*LOG((10^(L12/10)+10^(M12/10)+10^(N12/10)+10^(O12/10)+10^(P12/10)+10^(Q12/10)+10^(R12/10)+10^(S12/10))) -> 91.08371731 | AC12: 25" BI | AD12: 95 | AE12: 100 | AF12: 88 | AG12: 80 | AH12: 79 | AI12: 77 | AJ12: 76 | AK12: 71 | AL12: 102 | AM12: 89 | AN12: 101 | AO12: 97 | AP12: 92 | AQ12: 90 | AR12: 84 | AS12: 84 | AT12: 79 | AU12: 103 | AV12: 5000 | AW12: 5 | AX12: 1437 | AY12: 2150 | AZ12: 25" BI | BA12: 1354 | BB12: 6187 | BC12: 4.16 | BD12: 25" BI | BE12: 95 | BF12: 90 | BG12: 92 | BH12: 85 | BI12: 86 | BJ12: 83 | BK12: 85 | BL12: 82 | BM12: 99 | BN12: 93 | BO12: 91 | BP12: 101 | BQ12: 97 | BR12: 96 | BS12: 91 | BT12: 93 | BU12: 88 | BV12: 104 | BW12: 13000 | BX12: 3.5 | BY12: 1800
B13: -26 | C13: -16 | D13: -9 | E13: -3 | F13: 0 | G13: 1 | H13: 1 | I13: -1 | L13: -26 | M13: -16 | N13: -9 | O13: -3 | P13: 0 | Q13: 1 | R13: 1 | S13: -1 | AC13: 12" AF | AD13: 85 | AE13: 80 | AF13: 77 | AG13: 82 | AH13: 76 | AI13: 76 | AJ13: 69 | AK13: 66 | AL13: 89 | AM13: 79 | AN13: 79 | AO13: 79 | AP13: 88 | AQ13: 85 | AR13: 85 | AS13: 79 | AT13: 78 | AU13: 92 | AV13: 3000 | AW13: 5 | AX13: 3334 | AY13: 4500 | AZ13: 12" AF | BA13: 3340 | BB13: 3554 | BC13: 3.55 | BD13: 12" AF | BE13: 95 | BF13: 89 | BG13: 84 | BH13: 88 | BI13: 83 | BJ13: 82 | BK13: 79 | BL13: 78 | BM13: 97 | BN13: 92 | BO13: 88 | BP13: 87 | BQ13: 96 | BR13: 93 | BS13: 91 | BT13: 86 | BU13: 87 | BV13: 100 | BW13: 4379 | BX13: 3.31 | BY13: 3793
AC14: 14" AF | AD14: 88 | AE14: 80 | AF14: 78 | AG14: 82 | AH14: 75 | AI14: 73 | AJ14: 67 | AK14: 64 | AL14: 90 | AM14: 94 | AN14: 86 | AO14: 84 | AP14: 88 | AQ14: 81 | AR14: 79 | AS14: 73 | AT14: 70 | AU14: 96 | AV14: 2600 | AW14: 5 | AX14: 2670 | AY14: 4000 | AZ14: 14" AF | BA14: 3074 | BB14: 4884 | BC14: 2.87 | BD14: 14" AF | BE14: 88 | BF14: 80 | BG14: 78 | BH14: 82 | BI14: 75 | BJ14: 73 | BK14: 67 | BL14: 64 | BM14: 90 | BN14: 94 | BO14: 86 | BP14: 84 | BQ14: 88 | BR14: 81 | BS14: 79 | BT14: 73 | BU14: 70 | BV14: 96 | BW14: 2600 | BX14: 5 | BY14: 2670
A15: =A2 -> Quote/Project#: | B15: 3268 | AC15: 16" AF | AD15: 87 | AE15: 82 | AF15: 81 | AG15: 84 | AH15: 77 | AI15: 73 | AJ15: 68 | AK15: 66 | AL15: 91 | AM15: 85 | AN15: 80 | AO15: 81 | AP15: 87 | AQ15: 84 | AR15: 81 | AS15: 77 | AT15: 75 | AU15: 92 | AV15: 2600 | AW15: 5 | AX15: 2520 | AY15: 3700 | AZ15: 16" AF | BA15: 3416 | BB15: 6909 | BC15: 6.16 | BD15: 16" AF | BE15: 100 | BF15: 94 | BG15: 90 | BH15: 93 | BI15: 88 | BJ15: 87 | BK15: 83 | BL15: 85 | BM15: 102 | BN15: 97 | BO15: 90 | BP15: 90 | BQ15: 98 | BR15: 95 | BS15: 93 | BT15: 88 | BU15: 86 | BV15: 103 | BW15: 7500 | BX15: 4.16 | BY15: 3385
A16: Customer/JOB: | B16: Georgetown Behavioral | AC16: 18" AF | AD16: 75 | AE16: 73 | AF16: 77 | AG16: 74 | AH16: 74 | AI16: 70 | AJ16: 67 | AK16: 61 | AL16: 83 | AM16: 83 | AN16: 79 | AO16: 87 | AP16: 85 | AQ16: 84 | AR16: 79 | AS16: 74 | AT16: 70 | AU16: 91 | AV16: 4379 | AW16: 3.31 | AX16: 1816 | AY16: 3300 | AZ16: 18" AF | BA16: 2582 | BB16: 7909 | BC16: 4.13 | BD16: 18" AF | BE16: 90 | BF16: 87 | BG16: 88 | BH16: 89 | BI16: 84 | BJ16: 82 | BK16: 83 | BL16: 78 | BM16: 95 | BN16: 95 | BO16: 91 | BP16: 94 | BQ16: 99 | BR16: 97 | BS16: 93 | BT16: 89 | BU16: 82 | BV16: 103 | BW16: 8500 | BX16: 3 | BY16: 2585
A17: Addison Rep: | B17: - | AC17: 20" AF | AD17: 77 | AE17: 73 | AF17: 83 | AG17: 71 | AH17: 74 | AI17: 69 | AJ17: 67 | AK17: 60 | AL17: 85 | AM17: 83 | AN17: 78 | AO17: 88 | AP17: 84 | AQ17: 84 | AR17: 79 | AS17: 76 | AT17: 72 | AU17: 91 | AV17: 5500 | AW17: 3 | AX17: 1624 | AY17: 2850 | AZ17: 20" AF | BA17: 2032 | BB17: 8363 | BC17: 3.17 | BD17: 20" AF | BE17: 92 | BF17: 87 | BG17: 87 | BH17: 88 | BI17: 83 | BJ17: 83 | BK17: 85 | BL17: 79 | BM17: 96 | BN17: 94 | BO17: 90 | BP17: 92 | BQ17: 96 | BR17: 95 | BS17: 91 | BT17: 89 | BU17: 84 | BV17: 102 | BW17: 10000 | BX17: 3 | BY17: 2278
H18: =IF(T1-TODAY()>93,"**THIS TOOL MAY HAVE BEEN RELPLACED BY A NEWER VERSION. CHECK FOR UPDATES AT WWW.ADDISON-HVAC.COM","") ->  | AC18: 22" AF | AD18: 80 | AE18: 74 | AF18: 83 | AG18: 71 | AH18: 70 | AI18: 67 | AJ18: 63 | AK18: 59 | AL18: 86 | AM18: 82 | AN18: 75 | AO18: 84 | AP18: 81 | AQ18: 80 | AR18: 75 | AS18: 71 | AT18: 68 | AU18: 89 | AV18: 5500 | AW18: 3 | AX18: 1340 | AY18: 2650 | AZ18: 22" AF | BA18: 1577 | BB18: 7627 | BC18: 3.6 | BD18: 22" AF | BE18: 88 | BF18: 82 | BG18: 87 | BH18: 79 | BI18: 78 | BJ18: 76 | BK18: 71 | BL18: 68 | BM18: 92 | BN18: 90 | BO18: 87 | BP18: 94 | BQ18: 91 | BR18: 90 | BS18: 85 | BT18: 80 | BU18: 76 | BV18: 98 | BW18: 10000 | BX18: 3 | BY18: 1733
AC19: 25" AF | AD19: 82 | AE19: 77 | AF19: 83 | AG19: 73 | AH19: 71 | AI19: 66 | AJ19: 67 | AK19: 64 | AL19: 86 | AM19: 85 | AN19: 78 | AO19: 86 | AP19: 82 | AQ19: 80 | AR19: 77 | AS19: 73 | AT19: 70 | AU19: 90 | AV19: 7500 | AW19: 3 | AX19: 1220 | AY19: 2350 | AZ19: 25" AF | BA19: 1236 | BB19: 9338 | BC19: 2.6 | BD19: 25" AF | BE19: 89 | BF19: 82 | BG19: 86 | BH19: 79 | BI19: 77 | BJ19: 72 | BK19: 72 | BL19: 70 | BM19: 92 | BN19: 91 | BO19: 86 | BP19: 92 | BQ19: 89 | BR19: 87 | BS19: 81 | BT19: 78 | BU19: 74 | BV19: 97 | BW19: 12000 | BX19: 2 | BY19: 1388
A20: Sound Data | B20: RETURN | L20: DISCHARGE | AC20: Dual 14" BI | AD20: =10*LOG(10^(AD7/10)+10^(AD7/10)) -> 99.01029996 | AE20: =10*LOG(10^(AE7/10)+10^(AE7/10)) -> 99.01029996 | AF20: 97.01029996 | AG20: 84.01029996 | AH20: 79.01029996 | AI20: 79.01029996 | AJ20: 77.01029996 | AK20: 72.01029996 | AL20: 104.0103 | AM20: 89.01029996 | AN20: 97.01029996 | AO20: 102.0103 | AP20: 93.01029996 | AQ20: 89.01029996 | AR20: 86.01029996 | AS20: 84.01029996 | AT20: 77.01029996 | AU20: 104.0103 | AV20: 1300 | AW20: 5 | AX20: 2509 | AY20: 3825 | AZ20: Dual 14" | BA20: 1940 | BB20: 1677 | BC20: 2.75 | BD20: Dual 14" | BE20: =10*LOG(10^(BE7/10)+10^(BE7/10)) -> 88.01029996 | BF20: 83.01029996 | BG20: 84.01029996 | BH20: 83.01029996 | BI20: 79.01029996 | BJ20: 78.01029996 | BK20: 76.01029996 | BL20: 76.01029996 | BM20: 92.01029996 | BN20: 79.01029996 | BO20: 81.01029996 | BP20: 89.01029996 | BQ20: 91.01029996 | BR20: 90.01029996 | BS20: 86.01029996 | BT20: 82.01029996 | BU20: =10*LOG(10^(BU7/10)+10^(BU7/10)) -> 79.01029996 | BV20: 96.01029996 | BW20: 2985 | BX20: 4 | BY20: 2700
A21: Freq. Band | B21: 63 | C21: 125 | D21: 250 | E21: 500 | F21: 1000 | G21: 2000 | H21: 4000 | I21: 8000 | J21: Tot. dBA | L21: 63 | M21: 125 | N21: 250 | O21: 500 | P21: 1000 | Q21: 2000 | R21: 4000 | S21: 8000 | T21: Tot. dBA | AC21: Dual 16" BI | AD21: =10*LOG(10^(AD8/10)+10^(AD8/10)) -> 98.01029996 | AE21: 98.01029996 | AF21: 97.01029996 | AG21: 85.01029996 | AH21: 80.01029996 | AI21: 80.01029996 | AJ21: 75.01029996 | AK21: 70.01029996 | AL21: 102.0103 | AM21: 86.01029996 | AN21: 94.01029996 | AO21: 101.0103 | AP21: 92.01029996 | AQ21: 89.01029996 | AR21: 84.01029996 | AS21: 77.01029996 | AT21: 73.01029996 | AU21: 103.0103 | AV21: 2526 | AW21: 6 | AX21: 2400 | AY21: 3400 | AZ21: Dual 16" | BA21: 3134 | BB21: 3600 | BC21: 8.5 | BD21: Dual 16" | BE21: 96.01029996 | BF21: 88.01029996 | BG21: 88.01029996 | BH21: 89.01029996 | BI21: 84.01029996 | BJ21: 82.01029996 | BK21: 81.01029996 | BL21: 79.01029996 | BM21: 98.01029996 | BN21: 87.01029996 | BO21: 87.01029996 | BP21: 93.01029996 | BQ21: 98.01029996 | BR21: 94.01029996 | BS21: 87.01029996 | BT21: 84.01029996 | BU21: 82.01029996 | BV21: 101.0103 | BW21: 4200 | BX21: 6 | BY21: 2944
A22: PRRA480 RTU-5 | B22: 51.98857883 | C22: 56.98857883 | D22: 69.98857883 | E22: 65.98857883 | F22: 66.98857883 | G22: 62.98857883 | H22: 63.98857883 | I22: 58.98857883 | J22: 73.95999752 | L22: 57.98857883 | M22: 60.98857883 | N22: 75.98857883 | O22: 77.98857883 | P22: 78.98857883 | Q22: 76.98857883 | R22: 72.98857883 | S22: 67.98857883 | T22: 84.14849089 | AC22: Dual 18" BI | AD22: 92.01029996 | AE22: 90.01029996 | AF22: 97.01029996 | AG22: 85.01029996 | AH22: 78.01029996 | AI22: 79.01029996 | AJ22: 79.01029996 | AK22: 74.01029996 | AL22: 100.0103 | AM22: 82.01029996 | AN22: 88.01029996 | AO22: 103.0103 | AP22: 94.01029996 | AQ22: 89.01029996 | AR22: 85.01029996 | AS22: 83.01029996 | AT22: 79.01029996 | AU22: 104.0103 | AV22: 3000 | AW22: 6 | AX22: 2220 | AY22: 3025 | AZ22: Dual 18" | BA22: 3000 | BB22: 5200 | BC22: 10 | BD22: Dual 18" | BE22: 91.01029996 | BF22: 86.01029996 | BG22: 89.01029996 | BH22: 89.01029996 | BI22: 84.01029996 | BJ22: 85.01029996 | BK22: 84.01029996 | BL22: 79.01029996 | BM22: 96.01029996 | BN22: 84.01029996 | BO22: 87.01029996 | BP22: 96.01029996 | BQ22: 100.0103 | BR22: 96.01029996 | BS22: 92.01029996 | BT22: 89.01029996 | BU22: 84.01029996 | BV22: 103.0103 | BW22: 6000 | BX22: 6 | BY22: 2718
A23: PRRA660 RTU-4 | B23: 55.20562874 | C23: 61.20562874 | D23: 78.20562874 | E23: 72.20562874 | F23: 78.20562874 | G23: 74.20562874 | H23: 72.20562874 | I23: 63.20562874 | J23: 82.91424733 | L23: 64.20562874 | M23: 69.20562874 | N23: 86.20562874 | O23: 88.20562874 | P23: 91.20562874 | Q23: 87.20562874 | R23: 84.20562874 | S23: 78.20562874 | T23: 95.13869866 | AC23: Dual 20" BI | AD23: 93.01029996 | AE23: 94.01029996 | AF23: 95.01029996 | AG23: 85.01029996 | AH23: 82.01029996 | AI23: 81.01029996 | AJ23: 80.01029996 | AK23: 75.01029996 | AL23: 100.0103 | AM23: 86.01029996 | AN23: 94.01029996 | AO23: 103.0103 | AP23: 96.01029996 | AQ23: 92.01029996 | AR23: 87.01029996 | AS23: 87.01029996 | AT23: 82.01029996 | AU23: 105.0103 | AV23: 3000 | AW23: 5 | AX23: 1821 | AY23: 2720 | AZ23: Dual 20" | BA23: 2347 | BB23: 5631 | BC23: 7.26 | BD23: Dual 20" | BE23: 94.01029996 | BF23: 88.01029996 | BG23: 94.01029996 | BH23: 89.01029996 | BI23: 87.01029996 | BJ23: 87.01029996 | BK23: 88.01029996 | BL23: 85.01029996 | BM23: 99.01029996 | BN23: 90.01029996 | BO23: 87.01029996 | BP23: 101.0103 | BQ23: 99.01029996 | BR23: 95.01029996 | BS23: 93.01029996 | BT23: 94.01029996 | BU23: 89.01029996 | BV23: 105.0103 | BW23: 8005 | BX23: 4.5 | BY23: 2400
A24: PRRA660 RTU-1&2 | B24: 64.92513277 | C24: 69.92513277 | D24: 76.92513277 | E24: 83.92513277 | F24: 81.92513277 | G24: 82.92513277 | H24: 84.92513277 | I24: 76.92513277 | J24: 90.09058464 | L24: 69.92513277 | M24: 75.92513277 | N24: 84.92513277 | O24: 94.92513277 | P24: 96.92513277 | Q24: 93.92513277 | R24: 91.92513277 | S24: 84.92513277 | T24: 101.0489021 | AZ24: 450mm | BD24: 450mm
A25: PRRA480 RTU-3 | B25: 59.71696283 | C25: 62.71696283 | D25: 73.71696283 | E25: 72.71696283 | F25: 73.71696283 | G25: 69.71696283 | H25: 69.71696283 | I25: 65.71696283 | J25: 79.59213672 | L25: 64.71696283 | M25: 69.71696283 | N25: 82.71696283 | O25: 85.71696283 | P25: 86.71696283 | Q25: 81.71696283 | R25: 78.71696283 | S25: 72.71696283 | T25: 91.08371731 | AC25: 500mm | AD25: 91 | AE25: 77 | AF25: 79 | AG25: 76 | AH25: 71 | AI25: 69 | AJ25: 67 | AK25: 63 | AL25: 92 | AM25: 92 | AN25: 87 | AO25: 83 | AP25: 78 | AQ25: 77 | AR25: 72 | AS25: 66 | AT25: 63 | AU25: 94 | AV25: 3835 | AW25: 2 | AX25: 1290 | AZ25: 500mm | BA25: 1290 | BB25: 3835 | BC25: 2 | BD25: 500mm | BE25: 91 | BF25: 77 | BG25: 79 | BH25: 76 | BI25: 71 | BJ25: 69 | BK25: 67 | BL25: 63 | BM25: 92 | BN25: 92 | BO25: 87 | BP25: 83 | BQ25: 78 | BR25: 77 | BS25: 72 | BT25: 66 | BU25: 63 | BV25: 94 | BW25: 3835 | BX25: 2 | BY25: 1290
AZ26: 560mm | BD26: 560mm
AZ27: 630mm | BD27: 630mm
AC29: Dual 14" AF | AD29: =10*LOG(10^(AD14/10)+10^(AD14/10)) -> 91.01029996 | AE29: =10*LOG(10^(AE14/10)+10^(AE14/10)) -> 83.01029996 | AF29: 81.01029996 | AG29: 85.01029996 | AH29: 78.01029996 | AI29: 76.01029996 | AJ29: 70.01029996 | AK29: 67.01029996 | AL29: 93.01029996 | AM29: 97.01029996 | AN29: 89.01029996 | AO29: 87.01029996 | AP29: 91.01029996 | AQ29: 84.01029996 | AR29: 82.01029996 | AS29: 76.01029996 | AT29: 73.01029996 | AU29: 99.01029996 | AV29: 2600 | AW29: 5 | AX29: 2670 | AY29: 4000 | AZ29: Dual 14" AF | BA29: 3074 | BB29: 4884 | BC29: 2.87 | BD29: Dual 14" AF | BE29: =10*LOG(10^(BE14/10)+10^(BE14/10)) -> 91.01029996 | BF29: =10*LOG(10^(BF14/10)+10^(BF14/10)) -> 83.01029996 | BG29: 81.01029996 | BH29: 85.01029996 | BI29: 78.01029996 | BJ29: 76.01029996 | BK29: 70.01029996 | BL29: 67.01029996 | BM29: 93.01029996 | BN29: 97.01029996 | BO29: 89.01029996 | BP29: 87.01029996 | BQ29: 91.01029996 | BR29: 84.01029996 | BS29: 82.01029996 | BT29: 76.01029996 | BU29: 73.01029996 | BV29: 99.01029996 | BW29: 2600 | BX29: 5 | BY29: 2670
AC30: Dual 16" AF | AD30: =10*LOG(10^(AD15/10)+10^(AD15/10)) -> 90.01029996 | AE30: 85.01029996 | AF30: 84.01029996 | AG30: 87.01029996 | AH30: 80.01029996 | AI30: 76.01029996 | AJ30: 71.01029996 | AK30: 69.01029996 | AL30: 94.01029996 | AM30: 88.01029996 | AN30: 83.01029996 | AO30: 84.01029996 | AP30: 90.01029996 | AQ30: 87.01029996 | AR30: 84.01029996 | AS30: 80.01029996 | AT30: 78.01029996 | AU30: 95.01029996 | AV30: 2600 | AW30: 5 | AX30: 2520 | AY30: 3700 | AZ30: Dual 16" AF | BA30: 3416 | BB30: 6909 | BC30: 6.16 | BD30: Dual 16" AF | BE30: =10*LOG(10^(BE15/10)+10^(BE15/10)) -> 103.0103 | BF30: 97.01029996 | BG30: 93.01029996 | BH30: 96.01029996 | BI30: 91.01029996 | BJ30: 90.01029996 | BK30: 86.01029996 | BL30: 88.01029996 | BM30: 105.0103 | BN30: 100.0103 | BO30: 93.01029996 | BP30: 93.01029996 | BQ30: 101.0103 | BR30: 98.01029996 | BS30: 96.01029996 | BT30: 91.01029996 | BU30: 89.01029996 | BV30: 106.0103 | BW30: 7500 | BX30: 4.16 | BY30: 3385
AC31: Dual 18" AF | AD31: 78.01029996 | AE31: 76.01029996 | AF31: 80.01029996 | AG31: 77.01029996 | AH31: 77.01029996 | AI31: 73.01029996 | AJ31: 70.01029996 | AK31: 64.01029996 | AL31: 86.01029996 | AM31: 86.01029996 | AN31: 82.01029996 | AO31: 90.01029996 | AP31: 88.01029996 | AQ31: 87.01029996 | AR31: 82.01029996 | AS31: 77.01029996 | AT31: 73.01029996 | AU31: 94.01029996 | AV31: 4379 | AW31: 3.31 | AX31: 1816 | AY31: 3300 | AZ31: Dual 18" AF | BA31: 2582 | BB31: 7909 | BC31: 4.13 | BD31: Dual 18" AF | BE31: 93.01029996 | BF31: 90.01029996 | BG31: 91.01029996 | BH31: 92.01029996 | BI31: 87.01029996 | BJ31: 85.01029996 | BK31: 86.01029996 | BL31: 81.01029996 | BM31: 98.01029996 | BN31: 98.01029996 | BO31: 94.01029996 | BP31: 97.01029996 | BQ31: 102.0103 | BR31: 100.0103 | BS31: 96.01029996 | BT31: 92.01029996 | BU31: 85.01029996 | BV31: 106.0103 | BW31: 8500 | BX31: 3 | BY31: 2585
AC32: Dual 20" AF | AD32: 80.01029996 | AE32: 76.01029996 | AF32: 86.01029996 | AG32: 74.01029996 | AH32: 77.01029996 | AI32: 72.01029996 | AJ32: 70.01029996 | AK32: 63.01029996 | AL32: 88.01029996 | AM32: 86.01029996 | AN32: 81.01029996 | AO32: 91.01029996 | AP32: 87.01029996 | AQ32: 87.01029996 | AR32: 82.01029996 | AS32: 79.01029996 | AT32: 75.01029996 | AU32: 94.01029996 | AV32: 5500 | AW32: 3 | AX32: 1624 | AY32: 2850 | AZ32: Dual 20" AF | BA32: 2032 | BB32: 8363 | BC32: 3.17 | BD32: Dual 20" AF | BE32: 95.01029996 | BF32: 90.01029996 | BG32: 90.01029996 | BH32: 91.01029996 | BI32: 86.01029996 | BJ32: 86.01029996 | BK32: 88.01029996 | BL32: 82.01029996 | BM32: 99.01029996 | BN32: 97.01029996 | BO32: 93.01029996 | BP32: 95.01029996 | BQ32: 99.01029996 | BR32: 98.01029996 | BS32: 94.01029996 | BT32: 92.01029996 | BU32: 87.01029996 | BV32: 105.0103 | BW32: 10000 | BX32: 3 | BY32: 2278
AC34: Hz | AD34: 63 | AE34: 125 | AF34: 250 | AG34: 500 | AH34: 1000 | AI34: 2000 | AJ34: 4000 | AK34: 8000 | AL34: Tot. | AM34: 63 | AN34: 125 | AO34: 250 | AP34: 500 | AQ34: 1000 | AR34: 2000 | AS34: 4000 | AT34: 8000 | AU34: Tot.
AC35: =VLOOKUP($C$7,$AC$4:$AT$33,AC2,FALSE) -> 25" AF | AD35: =IF($AD$39=TRUE,-3+IF($BA$2=0,VLOOKUP($J$7,AREA1,AD2,FALSE)+50*(LOG($L$9/(VLOOKUP($J$7,AREA1,22,FALSE)))),VLOOKUP($J$7,AREA2,BE2,FALSE)+50*(LOG($L$9/(VLOOKUP($J$7,AREA2,22,FALSE))))),-6+IF($BA$1=0,VLOOKUP($C$7,AREA1,AD2,FALSE)+50*(LOG($E$9/(VLOOKUP($C$7,AREA1,22,FALSE)))),VLOOKUP($C$7,AREA2,BE2,FALSE)+50*(LOG($E$9/(VLOOKUP($C$7,AREA2,22,FALSE)))))) -> 85.71696283 | AE35: 78.71696283 | AF35: 82.71696283 | AG35: 75.71696283 | AH35: 73.71696283 | AI35: 68.71696283 | AJ35: 68.71696283 | AK35: 66.71696283 | AL35: 88.71696283 | AM35: =-3+IF($BA$1=0,VLOOKUP($C$7,AREA1,AM2,FALSE)+50*(LOG($AD$38/(VLOOKUP($C$7,AREA1,22,FALSE)))),VLOOKUP($C$7,AREA2,BN2,FALSE)+50*(LOG($AD$38/(VLOOKUP($C$7,AREA2,22,FALSE))))) -> 90.71696283 | AN35: 85.71696283 | AO35: 91.71696283 | AP35: 88.71696283 | AQ35: 86.71696283 | AR35: 80.71696283 | AS35: 77.71696283 | AT35: 73.71696283 | AU35: =IF($BA$1=0,VLOOKUP($C$7,AREA1,AU2,FALSE)+50*(LOG($AD$38/(VLOOKUP($C$7,AREA1,22,FALSE)))),VLOOKUP($C$7,AREA2,BV2,FALSE)+50*(LOG($AD$38/(VLOOKUP($C$7,AREA2,22,FALSE))))) -> 99.71696283
AC36: CFM | AD36: =E7 -> 12440
AC37: TSP | AD37: =E8 -> 3.4
AC38: RPM | AD38: =E9 -> 1573
AC39: Exhaust | AD39: FALSE | AE39: =IF(AD39=TRUE,0,0) -> 0

Sheet Sheet3
